Cogmind - Beta 15 @@@ ROGUE MODE // 2025.06.07 @ 22:44:09 Player: shockman27 Result: Destroyed by G-47 Trooper with Particle Gun Performance ------------- Evolutions (2) 1000 Regions Visited (7) 1400 Robots Destroyed (157) 785 Value Destroyed (5080) 5080 Prototype IDs (37) 740 Alien Tech Used (0) 0 Bonus (2166) 2166 TOTAL SCORE: 11171 Bonus ------- High Alert Combat Kills 496 Follower Combat Kills 170 Entered Garrisons 200 Used RIF Installer 1000 Aligned with FarCom 300 Cogmind --------- Core Integrity 0/550 Matter 280/300 Energy 310/310 System Corruption 2% Temperature Cool (9) Movement Rolling (115) Ox2 Location -8/Materials Parts ------- > --- POWER (1) -------- Fission Core > --- PROPULSION (3) --- Wheel Armored Wheel > --- UTILITY (5) ------ Improved Heat Sink High-capacity Storage Unit Reactive Plating (fused) Hacking Suite Relay Coupler [Hunter] (5) > --- WEAPON (2) ------- Axe > --- INVENTORY (20) --- Light Nuclear Core Aerolev Unit Aerolev Unit Cooled Airjet Cooled Airjet Cooled Airjet Cooled Airjet Medium Storage Unit Superbattery (1500) Hacking Suite Authchip [R/Combat] Relay Coupler [NC] (29) Trap Extractor (4/4 Fusion Bomb) Heavy EM Pulse Gun Heavy Particle Gun Advanced Beam Rifle Heavy Plasma Cannon Enhanced Autogun Advanced EMP Blaster Missile Launcher Peak State ------------ > --- POWER ------------ Fission Core > --- PROPULSION ------- Armored Wheel Armored Wheel > --- UTILITY ---------- Improved Heat Sink High-capacity Storage Unit Reactive Plating Hacking Suite Relay Coupler [Hunter] > --- WEAPON ----------- Beam Rifle Heavy Plasma Cannon > --- INVENTORY -------- Light Nuclear Core Aerolev Unit Aerolev Unit Cooled Airjet Cooled Airjet Cooled Airjet Cooled Airjet Improved Heat Sink Superbattery Cloaking Device Hacking Suite Authchip [R/Combat] Relay Coupler [NC] Trap Extractor Heavy Particle Gun Advanced Beam Rifle Enhanced Autogun Missile Launcher Improved Datajack Axe [Rating: 39] Favorites ----------- Power Ion Engine Engine Ion Engine Power Core Fission Core Propulsion Light Treads Treads Light Treads Wheel Armored Wheel Hover Unit Cooled Airjet Utility High-capacity Storage Unit Device Improved Heat Sink Storage High-capacity Storage Unit Processor Improved Targeting Computer Hackware Hacking Suite Protection Light Armor Plating Weapon Assault Rifle Energy Gun Advanced Beam Rifle Energy Cannon Light EM Pulse Cannon Ballistic Gun Assault Rifle Ballistic Cannon Light Cannon Launcher Grenade Launcher Special Weapon Mining Laser Impact Weapon Flail Slashing Weapon Axe Special Melee Weapon Improved Datajack Build | -11 -10 -10 -10 -9 -8 -8 -8 ------- Run | Yrd Mat Min Exi Min Mat Gar Mat Slots Evolved 4 | . . . . . 4 . . Power . | . . . . . . . . Propulsion 1 | . . . . . 1 . . Utility 3 | . . . . . 3 . . Weapon . | . . . . . . . . Parts Attached 96 | 8 10 1 . 7 49 16 5 Power 8 | 1 1 . . . 4 2 . Engine 5 | 1 1 . . . 3 . . Core 3 | . . . . . 1 2 . Reactor . | . . . . . . . . Propulsion 24 | 2 4 . . 2 11 4 1 Treads 16 | . 4 . . 2 10 . . Leg . | . . . . . . . . Wheel 7 | 2 . . . . . 4 1 Hover 1 | . . . . . 1 . . Flight . | . . . . . . . . Utility 30 | 2 2 . . 3 16 7 . Device 12 | 1 . . . 1 6 4 . Storage 4 | 1 2 . . . . 1 . Processor 3 | . . . . 1 2 . . Hackware 3 | . . . . . 2 1 . Protection 8 | . . . . 1 6 1 . Artifact . | . . . . . . . . Weapon 34 | 3 3 1 . 2 18 3 4 Energy Gun 9 | 1 . . . . 6 1 1 Energy Cannon 5 | . 1 . . . 2 . 2 Ballistic Gun 5 | 2 . . . . 2 1 . Ballistic Cannon 4 | . . . . 2 2 . . Launcher 4 | . 1 . . . 1 1 1 Special Weapon 1 | . 1 . . . . . . Impact Weapon 2 | . . 1 . . 1 . . Slashing Weapon 3 | . . . . . 3 . . Piercing Weapon . | . . . . . . . . Special Melee Weapon 1 | . . . . . 1 . . Unidentified Prototypes 11 | . . . . 1 7 . 3 Corrupted Parts 1 | . . . . . 1 . . System Corruption 1 | . . . . . 1 . . Parts Lost 23 | . 1 . . . 13 8 1 Power 2 | . 1 . . . 1 . . Propulsion 6 | . . . . . 4 1 1 Utility 9 | . . . . . 6 3 . Weapon 6 | . . . . . 2 4 . Highest Loss Streak 5 | . 1 . . . 5 2 1 To Critical Strikes . | . . . . . . . . Average Backups 18 | 3 13 19 19 19 19 19 20 Power . | . . . . . . 1 1 Propulsion 5 | 1 3 4 4 3 6 6 6 Utility 5 | . 3 6 6 7 4 5 6 Weapon 6 | . 5 8 9 8 6 5 6 Tool/Special . | . . . . . . . . Unused Backups 37 | . 2 1 1 3 13 4 13 Power 2 | . . . . . 1 . 1 Propulsion 10 | . . . . 1 4 . 5 Utility 19 | . 2 1 1 . 7 2 6 Weapon 6 | . . . . 2 1 2 1 Tool/Special . | . . . . . . . . Average Slot Usage (%) 94 | . 99 100 100 99 87 93 88 Engine 9 | . 14 14 14 14 7 4 . Core 1 | . . . . . 1 4 9 Treads 21 | . 26 28 28 28 26 3 . Wheel 4 | . 1 . . . . 20 16 Device 10 | . 14 14 14 5 8 12 9 Storage 11 | . 14 14 14 14 9 9 9 Hackware 4 | . . . . . 4 9 18 Protection 6 | . . . . 8 10 11 9 Energy Gun 3 | . . . . . 8 8 2 Energy Cannon 5 | . 2 14 14 7 3 1 1 Ballistic Gun 6 | . 23 10 . . . 2 . Ballistic Cannon 2 | . . . . 15 1 . . Impact Weapon 1 | . . 3 14 . . . . Slashing Weapon 1 | . . . . . 2 4 6 Peak Build Rating 39 | 7 10 11 12 19 37 38 39 Average Rating 21 | 5 8 10 11 10 28 33 36 On Entrance 15 | . 7 10 11 12 10 33 37 Naked Turns . | . . . . . . . . Heaviest Build 75 | 15 52 52 52 55 75 71 74 Greatest Support 62 | 26 40 40 40 40 62 60 24 Greatest Overweight (x) 18 | . 1 1 1 1 18 4 6 Average Overweight (x) 1 | . . 1 1 1 . 1 2 Largest Inventory Capacity 20 | 8 20 20 20 20 20 20 20 Average Capacity 19 | 7 19 20 20 20 20 20 20 Most Carried 20 | 6 19 20 20 20 20 20 20 Average Carried 18 | 3 13 19 19 19 19 19 19 Final Capacity 20 | 8 20 20 20 20 20 20 20 Final Carried 20 | 6 18 20 20 20 20 20 20 Class Distribution -------------------- 55% | Mutant 44% | Scavenger-Mutant Dominant Class ---------------- Mutant | -10/Materials Mutant | -10/Mines Mutant | -10/Exiles Mutant | -9/Mines Scavenger-Mutant | -8/Materials Scavenger-Mutant | -8/Garrison Scavenger-Mutant | -8/Materials Resources | -11 -10 -10 -10 -9 -8 -8 -8 ----------- Run | Yrd Mat Min Exi Min Mat Gar Mat Matter Collected 3837 | 298 1061 86 . 146 1395 677 174 Remotely . | . . . . . . . . Salvage Created 5654 | 76 1071 385 . 30 2438 1252 402 Parts 306 | 7 69 24 . 5 115 69 17 Haulers Intercepted 10 | . 2 . . . 5 . 3 Recyclers Shooed 4 | . 2 1 . . 1 . . Parts Field Recycled . | . . . . . . . . Retrieved Matter . | . . . . . . . . Parts Self-Destructed . | . . . . . . . . Prevented . | . . . . . . . . Kills | -11 -10 -10 -10 -9 -8 -8 -8 ------- Run | Yrd Mat Min Exi Min Mat Gar Mat Combat Hostiles Destroyed 99 | . 17 4 . 4 45 26 3 Melee 3 | . . . . . . 3 . Guns 40 | . 10 2 . . 13 13 2 Cannons 21 | . . 2 . . 15 3 1 AOE 30 | . 7 . . 4 12 7 . Classes Destroyed 15 | 2 7 . . . 5 1 . Worker 11 | . 3 2 . . 5 . 1 Builder 9 | . 5 2 . . 2 . . Tunneler 5 | 1 1 2 . . 1 . . Hauler 10 | . 2 . . . 5 . 3 Recycler 9 | 1 4 1 . . 2 . 1 Operator 6 | . 2 . . . 3 . 1 Watcher 8 | . 3 . . . 4 . 1 Swarmer 23 | . 5 . . 4 6 7 1 Cutter 4 | . . . . . 4 . . Grunt 52 | . 12 4 . . 22 12 2 Brawler 4 | . . . . . 3 1 . Duelist 2 | . . . . . 2 . . Sentry 9 | . . . . . 6 3 . Hunter 3 | . . . . . 2 1 . Programmer 2 | . . . . . . 2 . Best Kill Streak 9 | 2 9 2 . 4 8 6 4 Combat Bots Only 6 | . 4 2 . 4 4 6 2 Max Kills in Single Turn 4 | 1 4 1 . 2 2 2 1 Gunslinging . | . . . . . . . . Exploded 2 | . 2 . . 2 2 2 . Melee 1 | . . . . . . 1 . Uniques/NPCs Destroyed . | . . . . . . . . Combat | -11 -10 -10 -10 -9 -8 -8 -8 -------- Run | Yrd Mat Min Exi Min Mat Gar Mat Hostile Shots Fired 511 | . 98 5 . 13 233 125 37 Missed 149 | . 27 2 . 7 71 35 7 Hits 362 | . 71 3 . 6 162 90 30 Melee 13 | . . . . . 13 . . Projectile 349 | . 71 3 . 6 149 90 30 AOE 1 | . . . . . 1 . . Critical Strikes 14 | . . . . . 8 5 1 Actively Blocked 2 | . . . . . 1 1 . Damage Taken 5426 | . 807 38 . 61 2842 1251 427 Core 725 | . 157 . . 7 279 160 122 Absorbed by Shields . | . . . . . . . . Redirected to Shielding 104 | . . . . . 20 84 . Ignored by Resistances 29 | . . . . . . 13 16 Regen/Repaired (Parts) 164 | . 164 . . . . . . Core Remaining (%) 67 | 100 . . . 34 . . . Volleys Fired 395 | 3 110 11 . 5 181 68 17 Largest 2 | 2 2 2 . 2 2 2 2 Hottest 146 | 40 100 76 . 60 124 124 146 Shots Fired 723 | 6 194 22 . 7 339 128 27 Gun 503 | 6 168 11 . . 192 109 17 Cannon 177 | . 2 11 . 4 137 13 10 Launcher 32 | . 13 . . 3 10 6 . Special 11 | . 11 . . . . . . Kinetic 306 | 6 168 11 . 4 68 47 2 Thermal 215 | . 11 . . . 149 30 25 Explosive 32 | . 13 . . 3 10 6 . Electromagnetic 170 | . 2 11 . . 112 45 . Robot Hit Streak 22 | 5 22 9 . 10 20 10 10 Robot Miss Streak 5 | . 5 1 . 1 5 3 1 Penetration Max 1 | . . . . . . 1 . Secondary Targets 5 | . . . . . 3 2 . Max Gunslinging Chain 1 | . . . . . 1 1 . Shots Hit Robots 508 | 5 115 20 . 1 221 111 35 Core Hits 231 | 3 53 10 . 5 101 47 12 Critical Kills 1 | . . 1 . . . . . Critical Parts Destroyed 1 | . 1 . . . . . . Critical Strikes 16 | . 1 1 . . 9 4 1 Burn 10 | . . . . . 8 1 1 Destroy 2 | . 1 1 . . . . . Blast 1 | . . . . . 1 . . Corrupt 1 | . . . . . . 1 . Sever 2 | . . . . . . 2 . Melee Attacks 115 | . . 6 . . 23 55 31 Impact 13 | . . 6 . . 7 . . Slashing 89 | . . . . . 13 49 27 Piercing . | . . . . . . . . Sneak Attacks 22 | . . 4 . . 5 5 8 Combat Hostiles . | . . . . . . . . Follow-up Attacks . | . . . . . . . . Damage Inflicted 13248 | 59 2211 658 . 205 5952 3109 1054 Guns 5678 | 59 1440 91 . . 2378 1517 193 Cannons 3052 | . 50 216 . . 2251 242 293 Explosions 2714 | . 721 . . 205 1173 615 . Melee 1804 | . . 351 . . 150 735 568 Ramming . | . . . . . . . . Kinetic 2975 | 59 1440 91 . . 670 681 34 Thermal 3791 | . . . . . 2616 723 452 Explosive 1830 | . 721 . . 205 585 319 . Electromagnetic 2848 | . 50 216 . . 1931 651 . Impact 351 | . . 351 . . . . . Slashing 1453 | . . . . . 150 735 568 Piercing . | . . . . . . . . Highest Corruption 2 | . . . . . 1 2 2 Average Corruption 1 | . . . . . 1 1 2 Corruption Purged 1 | . . . . . 1 . . Corruption Blocked . | . . . . . . . . Effects 60 | . . . . . 23 24 13 Message Errors 20 | . . . . . 11 4 5 Matter Fused 9 | . . . . . 2 5 2 Heat Flow Errors 12 | . . . . . 5 6 1 Energy Discharges 5 | . . . . . 2 1 2 Parts Rejected 1 | . . . . . . . 1 Parts Fused 2 | . . . . . 1 . 1 Data Loss (minor) 4 | . . . . . 1 2 1 Data Loss (major) 1 | . . . . . . 1 . Misfires 3 | . . . . . 1 2 . Alerts 3 | . . . . . . 3 . Overload Shots . | . . . . . . . . Overflow Damage 580 | . 27 181 . . 198 95 79 Projectiles 14 | . . . . . 14 . . Explosions 202 | . 27 . . . 124 51 . Melee 364 | . . 181 . . 60 44 79 Knockbacks 4 | . . 1 . . 3 . . Impact 1 | . . 1 . . . . . Kinetic 3 | . . . . . 3 . . Secondary . | . . . . . . . . Self-Inflicted Damage 249 | . 23 . . 12 140 74 . Shots 8 | . 1 . . 1 4 2 . Rammed . | . . . . . . . . Targets Rammed . | . . . . . . . . Kicked . | . . . . . . . . Crushed . | . . . . . . . . Highest Temperature 636 | . 80 66 . 18 636 209 308 Average Temperature 86 | . 23 20 . 9 103 44 131 Received Heat Transfer 1980 | . 402 21 . . 918 396 243 Effects 21 | . . . . . 17 . 4 Shutdowns 1 | . . . . . 1 . . Energy Bleed 6 | . . . . . 6 . . Interference 4 | . . . . . . . 4 Matter Decay 2 | . . . . . 2 . . Short Circuit 3 | . . . . . 3 . . Damage (minor) 2 | . . . . . 2 . . Damage (major) 2 | . . . . . 2 . . Damage (core) 1 | . . . . . 1 . . Siege Activations . | . . . . . . . . Martial Activations . | . . . . . . . . Shielding Activations . | . . . . . . . . Robots Disrupted 1 | . . . . . 1 . . Combat Hostiles 1 | . . . . . 1 . . Robots Corrupted 5 | . . 1 . . 4 . . Combat Hostiles 4 | . . . . . 4 . . Parts Fried 9 | . . 2 . . 7 . . Impact Corruptions 5 | . . 5 . . . . . Robots Melted 1 | . . . . . 1 . . Combat Hostiles 1 | . . . . . 1 . . Parts Melted 11 | . . . . . 7 1 3 Heat Transferred 7096 | . . . . . 4940 1225 931 Parts Sabotaged . | . . . . . . . . Parts Stolen . | . . . . . . . . Parts Stripped . | . . . . . . . . Power Chain Reactions 7 | . . . . . 3 4 . Alert | -11 -10 -10 -10 -9 -8 -8 -8 ------- Run | Yrd Mat Min Exi Min Mat Gar Mat Maximum Alert Level 4 | . 1 . . . 2 4 3 Low Security (%) 57 | 100 76 100 . 100 31 . 71 Level 1 22 | . 23 . . . 40 22 23 Level 2 13 | . . . . . 27 33 3 Level 3 3 | . . . . . . 19 1 Level 4 3 | . . . . . . 24 . Level 5 . | . . . . . . . . High Security . | . . . . . . . . Max Security . | . . . . . . . . Peak Influence 1451 | 5 259 67 . 124 677 1451 707 Initial 707 | . . 67 . . 11 220 707 Average 247 | . 118 5 . 20 297 784 135 Influence Increases 4168 | 10 726 136 . 210 1534 1311 241 Destroy 0b10 Robot/C 2140 | . 340 80 . 140 920 540 120 Destroy 0b10 Robot/NC 315 | 10 100 35 . 5 110 15 40 Destroy Leader 416 | . 90 20 . 20 218 30 38 Allied During Kill 34 | . . . . 11 4 6 13 Successful Hack 44 | . 11 . . . 9 24 . Select Force Hacks 60 | . 60 . . . . . . Disable Machine 165 | . 15 . . 15 60 75 . Anti-Garrison Action 500 | . . . . . . 500 . Destroy Structure 329 | . 65 1 . 19 123 106 15 Lose Combat Pursuer 165 | . 45 . . . 90 15 15 Influence Decreases 4167 | 10 553 309 . 180 1225 199 1691 Entered New Map 988 | . . 106 . . 19 119 744 Time Decay 1978 | 10 543 203 . 180 615 . 427 Lost Part 230 | . 10 . . . 130 80 10 Lost Ally 71 | . . . . . 11 . 60 Purge Threat 900 | . . . . . 450 . 450 Squads Dispatched 18 | . 4 . . . 11 . 3 Investigation 5 | . 2 . . . 1 . 2 Extermination . | . . . . . . . . Reinforcement 8 | . 2 . . . 5 . 1 Assault 1 | . . . . . 1 . . Garrison 4 | . . . . . 4 . . Intercept . | . . . . . . . . Searches Triggered . | . . . . . . . . Construction Impeded 2 | . . . . . 1 . 1 Haulers Reinforced . | . . . . . . . . Active Scanning Responses . | . . . . . . . . Cargo Convoy Interrupts . | . . . . . . . . Stealth | -11 -10 -10 -10 -9 -8 -8 -8 --------- Run | Yrd Mat Min Exi Min Mat Gar Mat Distress Signals 13 | . 2 . . . 8 1 2 Communications Jammed . | . . . . . . . . Distress Signals . | . . . . . . . . Times Spotted 155 | . 29 4 . 6 68 31 17 Peak Tracking Total 9 | . 4 2 . 4 5 5 9 Tactical Retreats 9 | . 2 . . . 5 1 1 Traps | -11 -10 -10 -10 -9 -8 -8 -8 ------- Run | Yrd Mat Min Exi Min Mat Gar Mat Traps Triggered 6 | . . . . . 1 4 1 Indirectly . | . . . . . . . . Trap Hack Attempts . | . . . . . . . . Triggered . | . . . . . . . . Disarmed . | . . . . . . . . Reprogrammed . | . . . . . . . . Reused . | . . . . . . . . Traps Extracted 1 | . . . . . . 1 . Installed 1 | . . . . . . 1 . Triggered . | . . . . . . . . Most Traps Carried 4 | . . . . . . 4 4 Machines | -11 -10 -10 -10 -9 -8 -8 -8 ---------- Run | Yrd Mat Min Exi Min Mat Gar Mat Machines Disabled 16 | . 1 . . 1 4 10 . Max in Single Turn 3 | . 1 . . 1 3 1 . Garrison Access 1 | . . . . . . . 1 Garrison Relay 5 | . . . . . . 5 . Machines Repaired . | . . . . . . . . Machines Dismantled . | . . . . . . . . Machines Sabotaged . | . . . . . . . . Overloaded Fab Kills . | . . . . . . . . Hacking | -11 -10 -10 -10 -9 -8 -8 -8 --------- Run | Yrd Mat Min Exi Min Mat Gar Mat Machines Accessed 29 | . 9 . 1 . 8 3 8 Terminals 19 | . 6 . . . 4 3 6 Fabricators . | . . . . . . . . Repair Stations 3 | . 1 . . . 1 . 1 Recycling Units 2 | . 2 . . . . . . Scanalyzers 2 | . . . . . 2 . . Garrison Access 2 | . . . . . 1 . 1 Total Hacks 83 | . 24 . 1 . 26 6 26 Successful 45 | . 12 . 1 . 18 3 11 Failed 38 | . 12 . . . 8 3 15 Catastrophic 3 | . . . . . 2 . 1 Database Lockouts . | . . . . . . . . Manual 39 | . 13 . 1 . 13 . 12 Terminals 56 | . 17 . . . 16 6 17 Fabricators . | . . . . . . . . Repair Stations 13 | . 5 . . . 3 . 5 Recycling Units 2 | . 2 . . . . . . Scanalyzers 6 | . . . . . 6 . . Garrison Access 5 | . . . . . 1 . 4 Terminal Hacks 16 | . 3 . 1 . 5 3 4 Robot Analysis 2 | . 2 . . . . . . Prototype ID Bank 1 | . . . . . 1 . . Open Door 1 | . . . . . . 1 . Level Access Points 1 | . . . . . . . 1 Emergency Access Points 1 | . . . . . . 1 . Alert Level 1 | . . . . . 1 . . Unreport Threat 6 | . . . . . 3 . 3 Locate Traps 1 | . 1 . . . . . . Garrison Registry 1 | . . . . . . 1 . Proto ID Catalog 1 | . . . 1 . . . . Fabricator Hacks . | . . . . . . . . Repair Station Hacks 7 | . 4 . . . 2 . 1 Scan Component 4 | . 2 . . . 1 . 1 Repair 3 | . 2 . . . 1 . . Recycling Unit Hacks . | . . . . . . . . Scanalyzer 6 | . . . . . 6 . . Insert Component 3 | . . . . . 3 . . Analyze 3 | . . . . . 3 . . Garrison Access Hacks 3 | . . . . . 1 . 2 Unlock Access 1 | . . . . . 1 . . Seal Access 1 | . . . . . . . 1 Coupler Status 1 | . . . . . . . 1 Unauthorized Hacks 13 | . 5 . . . 4 . 4 Terminals 10 | . 3 . . . 4 . 3 Assimilate 1 | . . . . . 1 . . Botnet 7 | . 2 . . . 2 . 3 Operators 2 | . 1 . . . 1 . . Fabricators . | . . . . . . . . Repair Stations . | . . . . . . . . Recycling Units 2 | . 2 . . . . . . Tunnel 2 | . 2 . . . . . . Scanalyzers . | . . . . . . . . Garrison Access 1 | . . . . . . . 1 Watchers 1 | . . . . . . . 1 Data Cores Recovered 1 | . . . . . . . 1 Used . | . . . . . . . . Hacking Detections 21 | . 7 . . . 5 2 7 Full Trace Events 3 | . . . . . 1 1 1 Feedback Events . | . . . . . . . . Feedback Blocked . | . . . . . . . . Robot Schematics Acquired . | . . . . . . . . Robots Built . | . . . . . . . . Authchips . | . . . . . . . . Time . | . . . . . . . . Total Robot Build Rating . | . . . . . . . . Part Schematics Acquired 2 | . . . . . 2 . . Parts Built . | . . . . . . . . Authchips . | . . . . . . . . Time . | . . . . . . . . Total Part Build Rating . | . . . . . . . . Parts Repaired 3 | . 2 . . . 1 . . Time 140 | . 52 . . . 88 . . Parts Recycled . | . . . . . . . . Recycled Matter . | . . . . . . . . Retrieved Matter . | . . . . . . . . Retrieved Components . | . . . . . . . . Parts Scanalyzed 2 | . . . . . 2 . . Part Schematics Acquired 2 | . . . . . 2 . . Parts Damaged 1 | . . . . . 1 . . Bothacking | -11 -10 -10 -10 -9 -8 -8 -8 ------------ Run | Yrd Mat Min Exi Min Mat Gar Mat Used RIF Installer 2 | . . . . . . 2 . Patrol Navigation 1 | . . . . . . 1 . Robots Hacked 7 | . . . . . 3 1 3 Non-combat 6 | . . . . . 3 . 3 Combat 1 | . . . . . . 1 . Robot Hacks Applied 7 | . . . . . 3 1 3 no_distress 5 | . . . . . 2 . 3 check_alert 1 | . . . . . 1 . . formatsys_high 1 | . . . . . . 1 . Relay Couplers Released 22 | . . . . . . 22 . Machine Destruction 22 | . . . . . . 22 . Attached 1 | . . . . . . 1 . Fabnet Peak Effective % . | . . . . . . . . Robots Rewired 2 | . . . . . . 2 . Allies Hacked . | . . . . . . . . Hacks Repelled . | . . . . . . . . Allies | -11 -10 -10 -10 -9 -8 -8 -8 -------- Run | Yrd Mat Min Exi Min Mat Gar Mat Total Allies 7 | . . . . 3 1 3 . Largest Group 3 | . . . . 3 3 3 3 Highest-Rated Group 83 | . . . . 40 40 83 83 Highest-Rated Ally 31 | . . . . 16 16 31 31 Total Orders 16 | . . . . 6 2 8 . STAY 8 | . . . . 3 1 4 . FOLLOW 8 | . . . . 3 1 4 . Ally Attacks 60 | . . . . 7 21 15 17 Total Damage 849 | . . . . 80 277 230 262 Kills 10 | . . . . 4 1 1 4 Allies Corrupted . | . . . . . . . . Allies Melted . | . . . . . . . . Intel | -11 -10 -10 -10 -9 -8 -8 -8 ------- Run | Yrd Mat Min Exi Min Mat Gar Mat Active Infowar (turns) 6620 | 11 2320 2040 540 583 1126 . . Traps 572 | . . . . . 572 . . Seismic 5597 | 11 2320 2040 540 583 103 . . Machine Analysis 451 | . . . . . 451 . . Robot Analysis Total 2 | . 2 . . . . . . Derelict Logs Recovered 4 | . . 1 . 3 . . . Drone Launches . | . . . . . . . . Drone Recoveries . | . . . . . . . . Exploration | -11 -10 -10 -10 -9 -8 -8 -8 ------------- Run | Yrd Mat Min Exi Min Mat Gar Mat Turns Passed 13890 | 79 2320 2040 540 1531 4099 2029 1252 Spaces Moved 6061 | 59 800 823 225 617 1558 1244 735 Core 7 | 5 . . . . 2 . . Treads 4037 | . 705 823 225 617 1556 111 . Legs . | . . . . . . . . Wheels 2017 | 54 95 . . . . 1133 735 Hover . | . . . . . . . . Flight . | . . . . . . . . Fastest Speed 50 | 50 90 240 240 240 155 105 115 Average Speed 186 | 86 222 240 240 240 201 116 121 Slowest Speed 950 | 100 240 240 240 240 950 163 180 Overloaded Moves . | . . . . . . . . Propulsion Burnouts . | . . . . . . . . Robots Hopped . | . . . . . . . . Potential Cave-ins . | . . . . . . . . Cave-ins Triggered . | . . . . . . . . Exploration Rate (%) 71 | 4 99 99 62 100 71 86 52 Regions Visited 7 Branch Regions 3 Pre-discovered Areas 5 | . 2 1 . 2 . . . Known Exits Taken 1 | . . . . . 1 . . Unknown Exits Taken 5 | 1 1 1 1 1 . . . Scrap Searched 4 | . . 2 . 2 . . . Spaces Dug 46 | . 8 1 . . 19 4 14 Terrain Destroyed 269 | . 69 1 . 20 130 34 15 Melee 37 | . . 1 . . 18 4 14 Projectile 22 | . 8 . . . 13 . 1 AOE 210 | . 61 . . 20 99 30 . Terrain Rammed . | . . . . . . . . Walls Destroyed . | . . . . . . . . Machines Disabled . | . . . . . . . . Actions | -11 -10 -10 -10 -9 -8 -8 -8 --------- Run | Yrd Mat Min Exi Min Mat Gar Mat Total 7714 | 76 1121 859 226 661 2141 1613 1017 Wait 749 | 1 166 15 . 17 186 151 213 Move 6053 | 58 799 822 224 616 1557 1242 735 Hop . | . . . . . . . . Pick Up 87 | 6 16 3 1 5 41 12 3 Fast Attach 33 | 7 2 . . . 19 2 3 Attach 25 | . 1 . . 1 16 7 . Detach 10 | . . . . 1 9 . . Swap 141 | 1 20 1 . 9 68 32 10 Drop 73 | . 7 1 1 7 41 11 5 Fire 395 | 3 110 11 . 5 181 68 17 Melee 115 | . . 6 . . 23 55 31 Ram . | . . . . . . . . Kick . | . . . . . . . . Crush . | . . . . . . . . Escape Stasis 32 | . . . . . . 32 . Rewire . | . . . . . . . . Trap 1 | . . . . . . 1 . Miscellaneous . | . . . . . . . . Route ------- -11/Scrapyard -10/Materials (discovered 4 exits: [*Mat x3] / [*Min]) -10/Mines (discovered 4 exits: [*Mat x2] / *Exi / [*Sub]) -10/Exiles -9/Mines (discovered 2 exits: *Mat x2) -8/Materials (discovered 2 exits: *Fac / Gar) -8/Garrison (discovered 3 exits: *Mat x3) -8/Materials (discovered 3 exits: Fac x3) History --------- Turn | Location | Event 12 | -11/Scrapyard | Discovered new exit (range 16) 80 | -11/Scrapyard | Entered Materials 308 | -10/Materials | Build established: Mutant 554 | -10/Materials | Discovered new exit (range 13) 865 | -10/Materials | Discovered new exit (range 6) 1230 | -10/Materials | Repaired Assault Rifle 1258 | -10/Materials | Repaired Assault Rifle 1502 | -10/Materials | Core integrity fell below 50% 1663 | -10/Materials | Discovered new exit (range 15) 1964 | -10/Materials | Discovered new exit (range 16) 2400 | -10/Materials | Entered Mines 2418 | -10/Mines | Met a Derelict bent on vengeance 2812 | -10/Mines | Deemed a non-threat by the Exiles lab entrance 2814 | -10/Mines | Discovered new exit (range 5) 2886 | -10/Mines | Discovered new exit (range 10) 3055 | -10/Mines | Found a damaged Exp. Sensor Array with a note attached 3060 | -10/Mines | Found Prototype Device 3385 | -10/Mines | Discovered new exit (range 7) 3635 | -10/Mines | Discovered new exit (range 13) 3659 | -10/Mines | Learned location of Zion (-6) 4440 | -10/Mines | Entered Exiles 4498 | -10/Exiles | Met 8R-AWN 4536 | -10/Exiles | Met EX-HEX 4616 | -10/Exiles | Met EX-BIN 4652 | -10/Exiles | Aligned with FarCom system 4654 | -10/Exiles | Given EX-Vault access code 4716 | -10/Exiles | Opened EX-Vault 4731 | -10/Exiles | Found Superbattery 4780 | -10/Exiles | Warned to stay clear of 0b10 Research branches 4815 | -10/Exiles | Exiles lab attacked by MAIN.C 4958 | -10/Exiles | Discovered new exit (range 11) 4980 | -10/Exiles | Left Exiles lab with Superbattery 4980 | -10/Exiles | Entered Mines 5173 | -9/Mines | Discovered new exit (range 11) 5414 | -9/Mines | Assisted by bots powering up and referring to "LRC-V3" 5574 | -9/Mines | Identified Exp. Sensor Array 5623 | -9/Mines | Learned Materials stockpile data 5797 | -9/Mines | Joined a pair of Derelicts in attacking an 0b10 outpost 6234 | -9/Mines | Discovered new exit (range 9) 6511 | -9/Mines | Entered Materials 6511 | -8/Materials | Accompanied by 3 allies 6511 | -8/Materials | Evolved 4 slots: Propulsion x1, Utility x3 7604 | -8/Materials | Build established: Scavenger-Mutant 8427 | -8/Materials | Discovered new exit (range 10) 8911 | -8/Materials | First assault squad dispatched 8985 | -8/Materials | Repaired Broken Cld. Airjet 8993 | -8/Materials | Garrison activated, responded to threat 9053 | -8/Materials | Lost 5 parts (1n3u1w) 9174 | -8/Materials | Lost 4 parts (3n1u) 9235 | -8/Materials | Core integrity fell below 50% 9501 | -8/Materials | Garrison activated, responded to threat 10604 | -8/Materials | Identified exit to Garrison 10610 | -8/Materials | Entered Garrison 10802 | -8/Garrison | Triggered checkpoint 10881 | -8/Garrison | Garrison Relay disabled 11116 | -8/Garrison | Triggered checkpoint 11188 | -8/Garrison | Discovered new exit (range 13) 11218 | -8/Garrison | Triggered checkpoint 11263 | -8/Garrison | Discovered new exit (range 68) 11263 | -8/Garrison | Discovered new exit (range 82) 11263 | -8/Garrison | Discovered new exit (range 18) 11662 | -8/Garrison | Installed Relay Interface Framework 11730 | -8/Garrison | Triggered checkpoint 11796 | -8/Garrison | Garrison Relay disabled 11826 | -8/Garrison | Triggered checkpoint 11920 | -8/Garrison | Expanded RIF knowledge: Patrol Navigation 12036 | -8/Garrison | Triggered checkpoint 12133 | -8/Garrison | Garrison Relay disabled 12222 | -8/Garrison | Triggered checkpoint 12254 | -8/Garrison | Garrison Relay disabled 12271 | -8/Garrison | Garrison Relay disabled 12639 | -8/Garrison | Entered Materials 12639 | -8/Materials | Accompanied by 3 allies 12767 | -8/Materials | Core integrity fell below 20% 13583 | -8/Materials | Identified exit to Factory 13891 | -8/Materials | Destroyed by G-47 Trooper with Particle Gun Last Messages --------------- >>no_distress Distress signal routine blocked. 13609_ Sneak attack on A-02 Transporter. 13609_ A-02 Transporter destroyed. 13611_ System corrupted: Matter fused (-6). 13627_ R-06 Scavenger collects Weight Redist. System. 13630_ Acquired 6 matter. 13630_ R-06 Scavenger collects Adv. Targeting Computer. 13720_ W-25 Informer sends out distress signal. 13749_ #A<&XAGNK8 ILWHB=UZCG&XTBYQPEQ/Y2VUZSKY 13794_ Acquired Prototype Energy Gun. 13794_ Identified Imp. EM Shotgun. 13796_ Dropped Imp. EM Shotgun. 13796_ Acquired Imp. Datajack. 13805_ Triggered Alarm Trap. 13805_ An alarm sounds. 13805_ ALERT: Alarm triggered, dispatching investigation squad. 13843_ U-05 Engineer builds a Wall. 13863_ W-25 Informer sends out distress signal. 13890_ System corrupted: Imp. Datajack rejected. Map ----- +----------------------------------------------------+ | ????????????????????????????????# ???### | | ??????????????????????????# ??# "????? | | ??????????????????????????# ??# ????? | | ??????????????????????????# ??# ???? | | ??????????????????????????# ??# ???? | | ?????????????????????###??# ??# ??? | | ????????????????????? ?# ??# **### | | ??????????????????????? # ??# **+ | | ???????????????????????? # #?# ### | | ????????????????????????? + #?# ??? | | ??????????????????????????# #?# ???? | | ??????????????????????????# #?####+###?? | | ??????????????????????????# #### ### | | ??????????????????????????# | | ??????????????????????????# " | | ??????????????????????##### | | ??????????????????????#!! #### ### | | ???????????#??????????#!! w #??####### | | ??????????? ?????????#!! #????###?# " | | ?????????+ ?????????#!! #?#### ### " | | ?????????? ""????????#!! #?# # " | | ???????